Cogmind - Beta 13 @@@ ROGUE MODE // 2024.04.06 @ 20:12:29 Player: emory Result: Destroyed by Y-45 Defender with Heavy Assault Rifle Performance ------------- Evolutions (1) 500 Regions Visited (2) 400 Robots Destroyed (40) 200 Value Destroyed (937) 937 Prototype IDs (0) 0 Alien Tech Used (0) 0 Bonus (13) 13 TOTAL SCORE: 2050 Bonus ------- High Alert Combat Kills 13 Cogmind --------- Core Integrity 0/400 Matter 157/300 Energy 100/100 System Corruption 0% Temperature Cool (0) Movement Walking (120) Location -9/Materials Parts ------- > --- POWER (1) -------- (None) > --- PROPULSION (4) --- Aluminum Leg > --- UTILITY (2) ------ Sensor Array Signal Interpreter > --- WEAPON (2) ------- Heavy Assault Rifle > --- INVENTORY (5) ---- Cargo Storage Unit Visual Processing Unit Improved Datajack Peak State ------------ > --- POWER ------------ Ion Engine > --- PROPULSION ------- Aluminum Leg Aluminum Leg Aluminum Leg Aluminum Leg > --- UTILITY ---------- Sensor Array Signal Interpreter > --- WEAPON ----------- Heavy Assault Rifle Light Cannon > --- INVENTORY -------- Cargo Storage Unit Visual Processing Unit [Rating: 10] Favorites ----------- Power Ion Engine Engine Ion Engine Propulsion Aluminum Leg Leg Aluminum Leg Flight Unit Flight Unit Utility Cargo Storage Unit Device Sensor Array Storage Cargo Storage Unit Processor Signal Interpreter Hackware Hacking Suite Weapon Grenade Launcher Ballistic Gun Light Assault Rifle Ballistic Cannon Light Cannon Launcher Grenade Launcher Build | -11 -10 -9 ------- Run | Yrd Mat Mat Slots Evolved 2 | . . 2 Power . | . . . Propulsion 2 | . . 2 Utility . | . . . Weapon . | . . . Parts Attached 27 | 5 3 19 Power 4 | 1 . 3 Engine 4 | 1 . 3 Core . | . . . Reactor . | . . . Propulsion 9 | 2 . 7 Treads . | . . . Leg 8 | 2 . 6 Wheel . | . . . Hover . | . . . Flight 1 | . . 1 Utility 5 | 1 1 3 Device 1 | . . 1 Storage 2 | 1 1 . Processor 1 | . . 1 Hackware 1 | . . 1 Protection . | . . . Artifact . | . . . Weapon 9 | 1 2 6 Energy Gun . | . . . Energy Cannon . | . . . Ballistic Gun 3 | 1 1 1 Ballistic Cannon 3 | . . 3 Launcher 3 | . 1 2 Special Weapon . | . . . Impact Weapon . | . . . Slashing Weapon . | . . . Piercing Weapon . | . . . Special Melee Weapon . | . . . Unidentified Prototypes . | . . . Parts Lost 18 | . 2 16 Power 4 | . . 4 Propulsion 8 | . . 8 Utility 1 | . . 1 Weapon 5 | . 2 3 Highest Loss Streak 4 | . 1 4 To Critical Strikes . | . . . Average Slot Usage (%) 65 | . 77 55 Engine 10 | . 14 7 Leg 24 | . 28 22 Device 1 | . . 3 Storage 9 | . 14 5 Processor 1 | . . 3 Ballistic Gun 8 | . 14 3 Ballistic Cannon 3 | . . 6 Launcher 3 | . 5 2 Naked Turns . | . . . Heaviest Build 148 | 12 148 148 Greatest Support 40 | 20 20 40 Greatest Overweight (x) 47 | . 7 47 Average Overweight (x) 2 | . 6 1 Largest Inventory Capacity 30 | 8 30 30 Average Capacity 22 | 7 29 17 Most Carried 5 | 3 5 5 Average Carried 2 | 1 2 2 Final Capacity 30 | 8 30 5 Final Carried 4 | 2 2 4 Class Distribution -------------------- 67% | Hauler-Mutant 19% | Scavenger-Mutant 12% | Mutant Dominant Class ---------------- Hauler-Mutant | -10/Materials Hauler-Mutant | -9/Materials Resources | -11 -10 -9 ----------- Run | Yrd Mat Mat Matter Collected 787 | 216 131 440 Remotely . | . . . Salvage Created 932 | . 377 555 Parts 66 | . 26 40 Haulers Intercepted . | . . . Recyclers Shooed 5 | . 5 . Parts Field Recycled . | . . . Retrieved Matter . | . . . Parts Self-Destructed . | . . . Prevented . | . . . Kills | -11 -10 -9 ------- Run | Yrd Mat Mat Combat Hostiles Destroyed 31 | . 8 23 Guns 10 | . 6 4 Cannons 14 | . . 14 AOE 7 | . 2 5 Classes Destroyed 9 | . 6 3 Builder 2 | . 2 . Tunneler 1 | . 1 . Recycler 3 | . 3 . Operator 1 | . . 1 Watcher 2 | . 1 1 Swarmer 11 | . 5 6 Grunt 17 | . 3 14 Brawler 1 | . . 1 Sentry 2 | . . 2 Best Kill Streak 4 | . 4 4 Combat Bots Only 4 | . 3 4 Max Kills in Single Turn 2 | . 1 2 Gunslinging . | . . . Exploded 2 | . 1 2 Melee . | . . . Uniques/NPCs Destroyed . | . . . Combat | -11 -10 -9 -------- Run | Yrd Mat Mat Hostile Shots Fired 259 | . 79 180 Missed 73 | . 18 55 Damage Taken 2266 | . 671 1595 Core 615 | . 203 412 Absorbed by Shields . | . . . Core Remaining (%) 59 | 100 18 . Volleys Fired 119 | . 34 85 Largest 2 | . 2 2 Hottest 58 | . 40 58 Shots Fired 153 | . 51 102 Gun 69 | . 45 24 Cannon 68 | . . 68 Launcher 16 | . 6 10 Special . | . . . Kinetic 137 | . 45 92 Thermal . | . . . Explosive 16 | . 6 10 Electromagnetic . | . . . Robot Hit Streak 13 | . 5 13 Robot Miss Streak 6 | . 6 3 Penetration Max . | . . . Secondary Targets 1 | . 1 . Max Gunslinging Chain 1 | . 1 . Shots Hit Robots 103 | . 31 72 Core Hits 56 | . 22 34 Critical Kills . | . . . Critical Parts Destroyed . | . . . Critical Strikes 3 | . . 3 Blast 3 | . . 3 Melee Attacks . | . . . Impact . | . . . Slashing . | . . . Piercing . | . . . Sneak Attacks . | . . . Combat Hostiles . | . . . Follow-up Attacks . | . . . Damage Inflicted 2445 | 1 665 1779 Guns 587 | . 292 295 Cannons 982 | . . 982 Explosions 838 | . 352 486 Melee . | . . . Ramming 38 | 1 21 16 Kinetic 1569 | . 292 1277 Thermal . | . . . Explosive 838 | . 352 486 Electromagnetic . | . . . Impact . | . . . Slashing . | . . . Piercing . | . . . Highest Corruption . | . . . Average Corruption . | . . . Corruption Purged . | . . . Corruption Blocked . | . . . Overload Shots . | . . . Overflow Damage 43 | . . 43 Projectiles 15 | . . 15 Explosions 28 | . . 28 Melee . | . . . Knockbacks 10 | . . 10 Impact . | . . . Kinetic 9 | . . 9 Secondary 1 | . . 1 Self-Inflicted Damage 290 | . 38 252 Shots 10 | . 3 7 Rammed . | . . . Targets Rammed 13 | 2 6 5 Kicked 13 | 2 6 5 Crushed . | . . . Highest Temperature 21 | . 9 21 Average Temperature 5 | . 5 5 Received Heat Transfer 486 | . 111 375 Siege Activations . | . . . Robots Corrupted . | . . . Combat Hostiles . | . . . Parts Fried . | . . . Impact Corruptions . | . . . Robots Melted . | . . . Combat Hostiles . | . . . Parts Melted . | . . . Heat Transferred . | . . . Parts Sabotaged . | . . . Parts Stolen . | . . . Parts Stripped . | . . . Power Chain Reactions . | . . . Alert | -11 -10 -9 ------- Run | Yrd Mat Mat Peak Influence 458 | . 127 458 Initial 25 | . . 25 Average 113 | . 39 174 Maximum Alert Level 2 | . . 2 Low Security (%) 80 | 100 100 65 Level 1 11 | . . 21 Level 2 7 | . . 13 Level 3 . | . . . Level 4 . | . . . Level 5 . | . . . High Security . | . . . Max Security . | . . . Squads Dispatched 8 | . 1 7 Investigation 4 | . . 4 Extermination . | . . . Reinforcement 4 | . 1 3 Assault . | . . . Garrison . | . . . Intercept . | . . . Searches Triggered . | . . . Construction Impeded 1 | . . 1 Haulers Reinforced . | . . . Active Scanning Responses . | . . . Cargo Convoy Interrupts . | . . . Stealth | -11 -10 -9 --------- Run | Yrd Mat Mat Distress Signals 4 | . . 4 Communications Jammed . | . . . Distress Signals . | . . . Times Spotted 54 | . 17 37 Peak Tracking Total 6 | . 6 6 Tactical Retreats 5 | . 2 3 Traps | -11 -10 -9 ------- Run | Yrd Mat Mat Traps Triggered 1 | . . 1 Indirectly . | . . . Trap Hack Attempts . | . . . Triggered . | . . . Disarmed 6 | . . 6 Reprogrammed 3 | . . 3 Reused 1 | . . 1 Traps Extracted . | . . . Installed . | . . . Triggered 1 | . . 1 Machines | -11 -10 -9 ---------- Run | Yrd Mat Mat Machines Disabled 4 | . . 4 Max in Single Turn 3 | . . 3 Machines Repaired . | . . . Machines Dismantled . | . . . Machines Sabotaged . | . . . Overloaded Fab Kills . | . . . Hacking | -11 -10 -9 --------- Run | Yrd Mat Mat Machines Accessed 7 | . 1 6 Terminals 7 | . 1 6 Fabricators . | . . . Repair Stations . | . . . Recycling Units . | . . . Scanalyzers . | . . . Garrison Access . | . . . Total Hacks 24 | . 1 23 Successful 11 | . 1 10 Failed 13 | . . 13 Catastrophic 2 | . . 2 Database Lockouts . | . . . Manual 5 | . . 5 Terminals 24 | . 1 23 Fabricators . | . . . Repair Stations . | . . . Recycling Units . | . . . Scanalyzers . | . . . Garrison Access . | . . . Terminal Hacks 11 | . 1 10 Record 3 | . . 3 Emergency Access Points 1 | . . 1 Locate Traps 1 | . . 1 Disarm Traps 1 | . . 1 Reprogram Traps 1 | . . 1 Recall Investigation 1 | . . 1 Zone Layout 3 | . 1 2 Fabricator Hacks . | . . . Repair Station Hacks . | . . . Recycling Unit Hacks . | . . . Scanalyzer . | . . . Garrison Access Hacks . | . . . Unauthorized Hacks . | . . . Terminals . | . . . Fabricators . | . . . Repair Stations . | . . . Recycling Units . | . . . Scanalyzers . | . . . Garrison Access . | . . . Data Cores Recovered 1 | . . 1 Used . | . . . Hacking Detections 6 | . . 6 Full Trace Events 3 | . . 3 Feedback Events . | . . . Feedback Blocked . | . . . Robot Schematics Acquired . | . . . Robots Built . | . . . Authchips . | . . . Time . | . . . Total Robot Build Rating . | . . . Part Schematics Acquired . | . . . Parts Built . | . . . Authchips . | . . . Time . | . . . Total Part Build Rating . | . . . Parts Repaired . | . . . Time . | . . . Parts Recycled . | . . . Recycled Matter . | . . . Retrieved Matter . | . . . Retrieved Components . | . . . Parts Scanalyzed . | . . . Part Schematics Acquired . | . . . Parts Damaged . | . . . Bothacking | -11 -10 -9 ------------ Run | Yrd Mat Mat Used RIF Installer . | . . . Robots Hacked . | . . . Non-combat . | . . . Combat . | . . . Robot Hacks Applied . | . . . Relay Couplers Released . | . . . Fabnet Peak Effective % . | . . . Robots Rewired . | . . . Allies Hacked . | . . . Hacks Repelled . | . . . Allies | -11 -10 -9 -------- Run | Yrd Mat Mat Total Allies . | . . . Largest Group . | . . . Highest-Rated Group . | . . . Highest-Rated Ally . | . . . Total Orders . | . . . Ally Attacks . | . . . Total Damage . | . . . Kills . | . . . Allies Corrupted . | . . . Allies Melted . | . . . Intel | -11 -10 -9 ------- Run | Yrd Mat Mat Robot Analysis Total . | . . . Derelict Logs Recovered . | . . . Drone Launches . | . . . Drone Recoveries . | . . . Exploration | -11 -10 -9 ------------- Run | Yrd Mat Mat Turns Passed 2425 | 60 1024 1341 Spaces Moved 687 | 43 165 479 Core 78 | 7 . 71 Treads . | . . . Legs 550 | 36 165 349 Wheels . | . . . Hover . | . . . Flight 59 | . . 59 Fastest Speed 40 | 50 120 40 Average Speed 288 | 108 547 214 Slowest Speed 2400 | 120 610 2400 Overloaded Moves . | . . . Propulsion Burnouts . | . . . Robots Hopped . | . . . Cave-ins Triggered . | . . . Exploration Rate (%) 33 | 3 40 57 Regions Visited 2 Branch Regions . Pre-discovered Areas . | . . . Known Exits Taken . | . . . Unknown Exits Taken 2 | 1 1 . Scrap Searched . | . . . Spaces Dug . | . . . Terrain Destroyed 92 | . 33 59 Melee . | . . . Projectile 1 | . . 1 AOE 91 | . 33 58 Terrain Rammed . | . . . Walls Destroyed . | . . . Machines Disabled . | . . . Actions | -11 -10 -9 --------- Run | Yrd Mat Mat Total 951 | 56 220 675 Wait 72 | . 7 65 Move 685 | 42 164 479 Hop . | . . . Pick Up 28 | 7 4 17 Fast Attach . | . . . Attach 27 | 5 3 19 Detach 4 | . . 4 Swap . | . . . Drop 3 | . 2 1 Fire 119 | . 34 85 Melee . | . . . Ram . | . . . Kick 13 | 2 6 5 Crush . | . . . Escape Stasis . | . . . Rewire . | . . . Trap . | . . . Miscellaneous . | . . . Route ------- -11/Scrapyard -10/Materials -9/Materials (discovered 1 exit: [*Min]) History --------- Turn | Location | Event 3 | -11/Scrapyard | Discovered new exit (range 15) 61 | -11/Scrapyard | Entered Materials 397 | -10/Materials | Build established: Hauler-Mutant 674 | -10/Materials | Core integrity fell below 50% 963 | -10/Materials | Discovered new exit (range 16) 1035 | -10/Materials | Core integrity fell below 20% 1085 | -10/Materials | Entered another Materials area 1085 | -9/Materials | Evolved 2 slots: Propulsion x2 1642 | -9/Materials | Core integrity fell below 50% 1665 | -9/Materials | Lost 4 parts (1p2n1w) 2217 | -9/Materials | Core integrity fell below 20% 2269 | -9/Materials | Build established: Scavenger-Mutant 2275 | -9/Materials | Discovered new exit (range 13) 2426 | -9/Materials | Destroyed by Y-45 Defender with Heavy Assault Rifle Last Messages --------------- 02263_ Ion Engine destroyed. 02267_ Y-45 Defender destroyed. 02270_ K-01 Serf collects debris. 02273_ Acquired 43 matter. 02273_ K-01 Serf collects debris. 02275_ Acquired 2 matter. 02275_ EXIT=FOUND 02277_ K-01 Serf collects debris. 02281_ Kicked K-01 Serf out of the way. 02283_ K-01 Serf collects debris. 02297_ O-16 Technician: "IFF HANDSHAKE FAILED. SECURING TERMINAL." 02300_ K-01 Serf cleans the Atomic Centrifuge. 02312_ ALERT: Hostiles spotted, dispatching reinforcements to Terminal M006. 02365_ W-16 Scout sends out distress signal. 02398_ Lgt. Cannon destroyed. 02401_ G-34 Mercenary destroyed. 02420_ Aluminum Leg destroyed. Map ----- +----------------------------------------------------+ | ???????????????????????????????????????????? | | ???????????????????????????????????????????? | | ???????????????????????????????????????????? | | ???????????????????????????????????????????? | | ???????????????????????????????????????????? | | ???????????????????????????????????????????? | | ???????????????????????????????????????????? | | ???????????????????????????????????????????? | | ????????????????????? ???????????????????? | | ????????????????????? #??????????????????? | | ????????????????????? +?????????########## | | ????????????????????? #?????????# | | ????????????????????# #?????????# | | ????????????????????# #?????????# """ | | ????????????????????# #?????????# """ | | ????????????????????# ########### """ | | ????????????""??????# # # | | ????????????"""?????+ # "" # | | ?????????????"" ????# # """ ""S # """ | | ?????????????? ????# # """ "" # """ | | ??????????????? ???# # """ # """ | | ?????????????###Y#### # + | | ?????????????# # # # | | ?????????????# #= # # """ | | ?????????????# """ %+= ########### """ | | ?????????????# """%@# """ | | ?????????????# """ # | | ?????????????# # | | ?????????????###################### """ | | ?????????????????????????????????## """ | | ???????????????##########????????#T """ | | ???????????????# ! #????????## | | ?????#####?????# ! #######???# | | ?????# #?????# ! # ##### """ | | ?????# ####### # """ | | ?????# # + """ | | ?????# # # | | ?????# + # # | | ?????# # ## ## """ | | ?????##### # ## ## """ | | ?????????## ########+### ## """ | | ???######## # ! ## ## | | ??? # # ## ## | | ??? + + ! ## ## | | ??? # # # ## ## = = | | ??? # # "T" # ### ## | | ???#+###### # """ # ###+#####+## | | ???# ######## # ## | | ???# #?????## # ## | | ???# #?????# # + | +----------------------------------------------------+ Best States ------------- Heat Dissipation 28 Energy Generation 10 Energy Capacity 250 Matter Stores 300 Matter Capacity 300 Sight Range 16 Robot Scan Range 14 Terrain Scan Density 10 Evasion (%) 62 Offensive Hacking 10 Item Schematics ----------------- None Robot Schematics ------------------ None Fabricated ------------ Nothing Alien Tech Used ----------------- None Achievements -------------- None Challenges ------------ None Game ------ Seed SpikedLaserArachnoskeleton Manual? 0 Play Time 00:23:34 Cumulative 12.9 hours Start 2024.04.06 @ 19:47:41 End 2024.04.06 @ 20:12:29 Sessions 1 Manual Loads 0 Difficulty Rogue Special Mode None Game No. 25 Rogue 25 Adventurer 0 Explorer 0 Win Type - Total 0 Types 0/0/0/0/0/0/0/0/0 Lore% 17 Gallery% 14 Achievement% 15 Wizard Run 0 Options --------- Layout 1 ASCII 1 Keyboard 0 Movement Vi Keybinds 0 Fullscreen 1 Font 16/SmallcapsGlow Map View 50x35 Zoom Use 0% Tactical HUD 1 Map Filters NONE Filters NONE Steam SD RUN: 398c39db-27ad-48b3-a886-8e5c47f8516e